Cogmind - Beta 15 @@@ ROGUE MODE // 2025.07.08 @ 15:38:28 Player: Dingot Result: Self-destructed Performance ------------- Evolutions (2) 1000 Regions Visited (4) 800 Robots Destroyed (6) 30 Value Destroyed (57) 57 Prototype IDs (3) 60 Alien Tech Used (0) 0 Bonus (0) 0 TOTAL SCORE: 1947 Bonus ------- None Cogmind --------- Core Integrity 133/550 Matter 288/300 Energy 35/100 System Corruption 0% Temperature Cool (0) Movement Flying (40) Location -8/Materials Parts ------- > --- POWER (1) -------- (None) > --- PROPULSION (4) --- Flight Unit > --- UTILITY (4) ------ Hacking Suite > --- WEAPON (2) ------- (None) > --- INVENTORY (5) ---- Small Storage Unit Subdweller Optics Utility Shielding Scrap Shield Peak State ------------ > --- POWER ------------ (None) > --- PROPULSION ------- Aerolev Unit > --- UTILITY ---------- Hacking Suite > --- WEAPON ----------- (None) > --- INVENTORY -------- Small Storage Unit Subdweller Optics Utility Shielding Scrap Shield [Rating: 7] Favorites ----------- Power Light Ion Engine Engine Light Ion Engine Propulsion Aerolev Unit Hover Unit Aerolev Unit Flight Unit Flight Unit Utility Hacking Suite Hackware Hacking Suite Weapon Heavy Particle Cannon Energy Cannon Heavy Particle Cannon Ballistic Gun Subdweller Machine Gun Build | -11 -10 -10 -10 -8 ------- Run | Yrd Mat Min Sub Mat Slots Evolved 4 | . . . . 4 Power . | . . . . . Propulsion 2 | . . . . 2 Utility 2 | . . . . 2 Weapon . | . . . . . Parts Attached 6 | 1 . . 1 4 Power 1 | 1 . . . . Engine 1 | 1 . . . . Core . | . . . . . Reactor . | . . . . . Propulsion 2 | . . . . 2 Treads . | . . . . . Leg . | . . . . . Wheel . | . . . . . Hover 1 | . . . . 1 Flight 1 | . . . . 1 Utility 1 | . . . . 1 Device . | . . . . . Storage . | . . . . . Processor . | . . . . . Hackware 1 | . . . . 1 Protection . | . . . . . Artifact . | . . . . . Weapon 2 | . . . 1 1 Energy Gun . | . . . . . Energy Cannon 1 | . . . . 1 Ballistic Gun 1 | . . . 1 . Ballistic Cannon . | . . . . . Launcher . | . . . . . Special Weapon . | . . . . . Impact Weapon . | . . . . . Slashing Weapon . | . . . . . Piercing Weapon . | . . . . . Special Melee Weapon . | . . . . . Unidentified Prototypes 1 | . . . . 1 Parts Lost 4 | . . . 2 2 Power 1 | . . . 1 . Propulsion 1 | . . . . 1 Utility . | . . . . . Weapon 2 | . . . 1 1 Highest Loss Streak 2 | . . . 2 1 To Critical Strikes 1 | . . . . 1 Average Backups 3 | . . . 3 4 Power . | . . . . . Propulsion . | . . . . . Utility 3 | . . . 3 4 Weapon . | . . . . . Tool/Special . | . . . . . Unused Backups 4 | . . . . 4 Power . | . . . . . Propulsion . | . . . . . Utility 4 | . . . . 4 Weapon . | . . . . . Tool/Special . | . . . . . Average Slot Usage (%) 13 | . 14 14 13 14 Engine 10 | . 14 14 13 . Hackware 1 | . . . . 7 Peak Build Rating 7 | 1 1 1 3 7 Average Rating 1 | . 1 1 1 5 On Entrance . | . 1 1 1 . Naked Turns 30 | . . . 24 6 Heaviest Build 7 | 3 3 3 7 6 Greatest Support 3 | 3 3 3 3 3 Greatest Overweight (x) 2 | . . . 2 1 Average Overweight (x) . | . . . . . Largest Inventory Capacity 5 | 5 5 5 5 5 Average Capacity 5 | 5 5 5 5 5 Most Carried 5 | 1 . 2 5 5 Average Carried 4 | . . . 4 5 Final Capacity 5 | 5 5 5 5 5 Final Carried 5 | . . 2 5 5 Class Distribution -------------------- 100% | Mutant Dominant Class ---------------- Mutant | -10/Materials Mutant | -10/Mines Mutant | -10/Subcaves Mutant | -8/Materials Resources | -11 -10 -10 -10 -8 ----------- Run | Yrd Mat Min Sub Mat Matter Collected 235 | 152 58 . 7 18 Remotely . | . . . . . Salvage Created 89 | . . 18 . 71 Parts 10 | . . 3 . 7 Haulers Intercepted . | . . . . . Recyclers Shooed . | . . . . . Parts Field Recycled . | . . . . . Retrieved Matter . | . . . . . Parts Self-Destructed 4 | . . . 4 . Prevented . | . . . . . Kills | -11 -10 -10 -10 -8 ------- Run | Yrd Mat Min Sub Mat Combat Hostiles Destroyed 5 | . . . . 5 Cannons 5 | . . . . 5 Classes Destroyed 2 | . . 1 . 1 Tunneler 1 | . . 1 . . Swarmer 5 | . . . . 5 Best Kill Streak 5 | . . 1 . 5 Combat Bots Only 5 | . . . . 5 Max Kills in Single Turn 1 | . . 1 . 1 Gunslinging . | . . . . . Exploded . | . . . . . Melee . | . . . . . Uniques/NPCs Destroyed . | . . . . . Combat | -11 -10 -10 -10 -8 -------- Run | Yrd Mat Min Sub Mat Hostile Shots Fired 92 | . . . 9 83 Missed 20 | . . . 3 17 Hits 72 | . . . 6 66 Projectile 72 | . . . 6 66 Critical Strikes 1 | . . . . 1 Damage Taken 823 | . 1 5 221 596 Core 556 | . . . 139 417 Absorbed by Shields . | . . . . . Core Remaining (%) 72 | 100 . . 44 . Volleys Fired 18 | . . . 3 15 Largest 1 | . . . 1 1 Hottest 75 | . . . 30 75 Shots Fired 18 | . . . 3 15 Gun 3 | . . . 3 . Cannon 15 | . . . . 15 Launcher . | . . . . . Special . | . . . . . Kinetic 3 | . . . 3 . Thermal 15 | . . . . 15 Explosive . | . . . . . Electromagnetic . | . . . . . Robot Hit Streak 4 | . . . 2 4 Robot Miss Streak 4 | . . . 1 4 Penetration Max . | . . . . . Secondary Targets . | . . . . . Shots Hit Robots 11 | . . . 2 9 Core Hits 7 | . 1 1 1 4 Critical Kills . | . . . . . Critical Parts Destroyed . | . . . . . Critical Strikes . | . . . . . Melee Attacks . | . . . . . Impact . | . . . . . Slashing . | . . . . . Piercing . | . . . . . Sneak Attacks . | . . . . . Combat Hostiles . | . . . . . Follow-up Attacks . | . . . . . Damage Inflicted 276 | . 2 11 38 225 Guns 38 | . . . 38 . Cannons 225 | . . . . 225 Explosions . | . . . . . Melee . | . . . . . Ramming 13 | . 2 11 . . Kinetic 38 | . . . 38 . Thermal 225 | . . . . 225 Explosive . | . . . . . Electromagnetic . | . . . . . Impact . | . . . . . Slashing . | . . . . . Piercing . | . . . . . Highest Corruption . | . . . . . Average Corruption . | . . . . . Corruption Purged . | . . . . . Corruption Blocked . | . . . . . Overload Shots . | . . . . . Overflow Damage 10 | . . . . 10 Projectiles 10 | . . . . 10 Explosions . | . . . . . Melee . | . . . . . Knockbacks . | . . . . . Impact . | . . . . . Kinetic . | . . . . . Secondary . | . . . . . Self-Inflicted Damage 6 | . 1 5 . . Shots . | . . . . . Rammed 2 | . 1 1 . . Targets Rammed 2 | . 1 1 . . Kicked . | . . . . . Crushed . | . . . . . Highest Temperature 120 | . . . . 120 Average Temperature 53 | . . . . 53 Received Heat Transfer 54 | . . . . 54 Siege Activations . | . . . . . Martial Activations . | . . . . . Shielding Activations . | . . . . . Robots Disrupted . | . . . . . Combat Hostiles . | . . . . . Robots Corrupted . | . . . . . Combat Hostiles . | . . . . . Parts Fried . | . . . . . Impact Corruptions . | . . . . . Robots Melted . | . . . . . Combat Hostiles . | . . . . . Parts Melted . | . . . . . Heat Transferred 333 | . . . . 333 Parts Sabotaged . | . . . . . Parts Stolen . | . . . . . Parts Stripped . | . . . . . Power Chain Reactions . | . . . . . Alert | -11 -10 -10 -10 -8 ------- Run | Yrd Mat Min Sub Mat Maximum Alert Level . | . . . . . Low Security (%) 100 | 100 100 100 . 100 Level 1 . | . . . . . Level 2 . | . . . . . Level 3 . | . . . . . Level 4 . | . . . . . Level 5 . | . . . . . High Security . | . . . . . Max Security . | . . . . . Peak Influence 138 | . 5 5 . 138 Initial . | . . . . . Average 24 | . . . . 49 Influence Increases 183 | . 5 5 . 173 Destroy 0b10 Robot/C 100 | . . . . 100 Destroy 0b10 Robot/NC 5 | . . 5 . . Destroy Leader 10 | . . . . 10 Successful Hack 5 | . 5 . . . Destroy Structure 3 | . . . . 3 Partial Spotted 15 | . . . . 15 Lose Combat Pursuer 45 | . . . . 45 Influence Decreases 65 | . 5 5 . 55 Time Decay 50 | . 5 5 . 40 Lost Part 15 | . . . . 15 Squads Dispatched 1 | . 1 . . . Investigation 1 | . 1 . . . Extermination . | . . . . . Reinforcement . | . . . . . Assault . | . . . . . Garrison . | . . . . . Intercept . | . . . . . Searches Triggered . | . . . . . Construction Impeded . | . . . . . Haulers Reinforced . | . . . . . Active Scanning Responses . | . . . . . Cargo Convoy Interrupts . | . . . . . Stealth | -11 -10 -10 -10 -8 --------- Run | Yrd Mat Min Sub Mat Distress Signals . | . . . . . Communications Jammed . | . . . . . Distress Signals . | . . . . . Times Spotted 17 | . 1 2 3 11 Peak Tracking Total 8 | . 1 3 2 8 Tactical Retreats 1 | . . . . 1 Traps | -11 -10 -10 -10 -8 ------- Run | Yrd Mat Min Sub Mat Traps Triggered 3 | . 1 . 2 . Indirectly . | . . . . . Trap Hack Attempts . | . . . . . Triggered . | . . . . . Disarmed . | . . . . . Reprogrammed . | . . . . . Reused . | . . . . . Traps Extracted . | . . . . . Installed . | . . . . . Triggered . | . . . . . Machines | -11 -10 -10 -10 -8 ---------- Run | Yrd Mat Min Sub Mat Machines Disabled . | . . . . . Max in Single Turn . | . . . . . Machines Repaired . | . . . . . Machines Dismantled . | . . . . . Machines Sabotaged . | . . . . . Overloaded Fab Kills . | . . . . . Hacking | -11 -10 -10 -10 -8 --------- Run | Yrd Mat Min Sub Mat Machines Accessed 1 | . 1 . . . Terminals 1 | . 1 . . . Fabricators . | . . . . . Repair Stations . | . . . . . Recycling Units . | . . . . . Scanalyzers . | . . . . . Garrison Access . | . . . . . Total Hacks 3 | . 3 . . . Successful 3 | . 3 . . . Failed . | . . . . . Catastrophic . | . . . . . Database Lockouts . | . . . . . Manual 1 | . 1 . . . Terminals 3 | . 3 . . . Fabricators . | . . . . . Repair Stations . | . . . . . Recycling Units . | . . . . . Scanalyzers . | . . . . . Garrison Access . | . . . . . Terminal Hacks 2 | . 2 . . . Prototype ID Bank 1 | . 1 . . . Zone Layout 1 | . 1 . . . Fabricator Hacks . | . . . . . Repair Station Hacks . | . . . . . Recycling Unit Hacks . | . . . . . Scanalyzer . | . . . . . Garrison Access Hacks . | . . . . . Unauthorized Hacks 1 | . 1 . . . Terminals 1 | . 1 . . . Botnet 1 | . 1 . . . Fabricators . | . . . . . Repair Stations . | . . . . . Recycling Units . | . . . . . Scanalyzers . | . . . . . Garrison Access . | . . . . . Data Cores Recovered . | . . . . . Used . | . . . . . Hacking Detections 1 | . 1 . . . Full Trace Events 1 | . 1 . . . Feedback Events . | . . . . . Feedback Blocked . | . . . . . Robot Schematics Acquired . | . . . . . Robots Built . | . . . . . Authchips . | . . . . . Time . | . . . . . Total Robot Build Rating . | . . . . . Part Schematics Acquired . | . . . . . Parts Built . | . . . . . Authchips . | . . . . . Time . | . . . . . Total Part Build Rating . | . . . . . Parts Repaired . | . . . . . Time . | . . . . . Parts Recycled . | . . . . . Recycled Matter . | . . . . . Retrieved Matter . | . . . . . Retrieved Components . | . . . . . Parts Scanalyzed . | . . . . . Part Schematics Acquired . | . . . . . Parts Damaged . | . . . . . Bothacking | -11 -10 -10 -10 -8 ------------ Run | Yrd Mat Min Sub Mat Used RIF Installer . | . . . . . Robots Hacked . | . . . . . Non-combat . | . . . . . Combat . | . . . . . Robot Hacks Applied . | . . . . . Relay Couplers Released . | . . . . . Fabnet Peak Effective % . | . . . . . Robots Rewired . | . . . . . Allies Hacked . | . . . . . Hacks Repelled . | . . . . . Allies | -11 -10 -10 -10 -8 -------- Run | Yrd Mat Min Sub Mat Total Allies . | . . . . . Largest Group . | . . . . . Highest-Rated Group . | . . . . . Highest-Rated Ally . | . . . . . Total Orders . | . . . . . Ally Attacks . | . . . . . Total Damage . | . . . . . Kills . | . . . . . Allies Corrupted . | . . . . . Allies Melted . | . . . . . Intel | -11 -10 -10 -10 -8 ------- Run | Yrd Mat Min Sub Mat Active Infowar (turns) . | . . . . . Robot Analysis Total . | . . . . . Derelict Logs Recovered . | . . . . . Drone Launches . | . . . . . Drone Recoveries . | . . . . . Exploration | -11 -10 -10 -10 -8 ------------- Run | Yrd Mat Min Sub Mat Turns Passed 622 | 14 27 62 416 103 Spaces Moved 935 | 24 51 111 650 99 Core 935 | 24 51 111 650 99 Treads . | . . . . . Legs . | . . . . . Wheels . | . . . . . Hover . | . . . . . Flight . | . . . . . Fastest Speed 50 | 50 50 50 50 50 Average Speed 50 | 50 50 50 51 52 Slowest Speed 150 | 50 50 50 150 100 Overloaded Moves . | . . . . . Propulsion Burnouts . | . . . . . Robots Hopped . | . . . . . Potential Cave-ins . | . . . . . Cave-ins Triggered . | . . . . . Exploration Rate (%) 18 | 3 15 20 40 12 Regions Visited 4 Branch Regions 2 Pre-discovered Areas 1 | . . . 1 . Known Exits Taken . | . . . . . Unknown Exits Taken 4 | 1 1 1 1 . Scrap Searched 1 | . . 1 . . Spaces Dug . | . . . . . Terrain Destroyed 3 | . . . . 3 Melee . | . . . . . Projectile 3 | . . . . 3 AOE . | . . . . . Terrain Rammed . | . . . . . Walls Destroyed . | . . . . . Machines Disabled . | . . . . . Actions | -11 -10 -10 -10 -8 --------- Run | Yrd Mat Min Sub Mat Total 1050 | 25 51 116 725 133 Wait 88 | . . 3 70 15 Move 931 | 23 50 110 649 99 Hop . | . . . . . Pick Up 5 | 1 . 2 2 . Fast Attach 5 | . . . 1 4 Attach 1 | 1 . . . . Detach . | . . . . . Swap . | . . . . . Drop . | . . . . . Fire 18 | . . . 3 15 Melee . | . . . . . Ram 2 | . 1 1 . . Kick . | . . . . . Crush . | . . . . . Escape Stasis . | . . . . . Rewire . | . . . . . Trap . | . . . . . Miscellaneous . | . . . . . Route ------- -11/Scrapyard -10/Materials -10/Mines -10/Subcaves -8/Materials History --------- Turn | Location | Event 4 | -11/Scrapyard | Discovered new exit (range 15) 15 | -11/Scrapyard | Entered Materials 31 | -10/Materials | Discovered new exit (range 16) 42 | -10/Materials | Entered Mines 66 | -10/Mines | Discovered new exit (range 9) 104 | -10/Mines | Entered Subcaves 105 | -10/Subcaves | Approached by a straggling Scientist 313 | -10/Subcaves | Build established: Mutant 403 | -10/Subcaves | A swath of the cavern ceiling suddenly collapsed 433 | -10/Subcaves | Learned location of Zion (-6) 433 | -10/Subcaves | Met a Zionite searching for "candidates" 502 | -10/Subcaves | Discovered new exit (range 14) 503 | -10/Subcaves | Core integrity fell below 50% 520 | -10/Subcaves | Entered Materials 520 | -8/Materials | Evolved 4 slots: Propulsion x2, Utility x2 591 | -8/Materials | Core integrity fell below 50% 623 | -8/Materials | Self-destructed Last Messages --------------- S-10 Pest destroyed. Acquired Hvy. Particle Cannon. Destroyed Flight Unit. S-10 Pest destroyed. R-06 Scavenger collects Lgt. Assault Rifle. U-05 Engineer builds a Wall. Destroyed Flight Unit. S-10 Pest destroyed. Acquired 18 matter. Acquired Flight Unit. R-06 Scavenger inserts Lgt. Ion Engine into recycling unit. U-05 Engineer builds a Wall. R-06 Scavenger inserts Lgt. Assault Rifle into recycling unit. R-06 Scavenger inserts Flight Unit into recycling unit. Hvy. Particle Cannon destroyed. R-06 Scavenger inserts Lgt. Assault Rifle into recycling unit. Map ----- +----------------------------------------------------+ | ????????????# ?????????????? | | ????????????# #### #####????????????????????? | | ????????????# #??# #????????????????????????? | | ????????????# #??# *#????????????????????????? | | ?############# ##??# [%#????????????????????????? | | ?# ! # #???# =#????????????????????????? | | ?# + #???# #????????????????????????? | | ?? """"" # #???# #????????????????????????? | | ?????""""""" # #???# #????????????????????????? | | ?????"" """ ?# #???# #????????????????????????? | | ????? ?# #???# #????????????????????????? | | ?????? ??# #???# #????????????????????????? | | ?????######??# #???# ####?????????????????????? | | ??????# ????# #???# !##????????????????????? | | ??????# ???# #???# !#????????????????????? | | ??????# ???# #???# !#????????????????????? | | ??????? ??## ###?# !#????????????????????? | | ?????####/### #?# !#????????????????????? | | # #?# !##????????????????????? | | * / " #?# ####?????????????????????? | | # #?# ###########??????????????? | | ????### #### #?# # """ #??????????????? | | ???????# ???## ##?# # ! """ #??????????????? | | ???????#?????# #??# #=%=[ """ #??????????????? | | ?????????????# #??# Y# %[% #??????????????? | | ?????????????# #??# Y@""r #??????????????? | | ?????????????# #??# # "Y #??????????????? | | ?????????????# #??# #u"" #??????????????? | | ?????????##### #### # u #??????????????? | | ?????????# ###########??????????????? | | ?????????# ##??????? ?????????????? | | ?????????# #????????? ????????????? | | ?????????######+#########?????????? ! ???????????? | | ??????????# #?????????????????????????????? | | ??????????# """ #?????????????????????????????? | | ??????????# """ #?????????????????????????????? | | ??????????# """ #?????????????????????????????? | | ??????????# #?????????????????????????????? | | ??????????# """ #?????????????????????????????? | | ??????????# """ #?????????????????????????????? | | ??????????# """ #?????????????????????????????? | | ??????????# #?????????????????????????????? | | ??????????##########?????????????????????????????? | | ?????????????????????????????????????????????????? | | ?????????????????????????????????????????????????? | | ?????????????????????????????????????????????????? | | ?????????????????????????????????????????????????? | | ?????????????????????????????????????????????????? | | ?????????????????????????????????????????????????? | | ?????????????????????????????????????????????????? | +----------------------------------------------------+ Best States ------------- Heat Dissipation 31 Energy Generation 10 Energy Capacity 125 Matter Stores 300 Matter Capacity 300 Sight Range 16 Terrain Scan Density 10 Evasion (%) 50 Offensive Hacking 10 Item Schematics ----------------- None Robot Schematics ------------------ None Fabricated ------------ Nothing Repaired ---------- Nothing Alien Tech Used ----------------- None Achievements -------------- None Challenges ------------ None Game ------ Seed MachineStormAutopenetrator Manual? 0 Play Time 00:14:16 Cumulative 8.8 hours Start 2025.07.08 @ 15:18:18 End 2025.07.08 @ 15:38:28 Sessions 1 Manual Loads 0 Difficulty Rogue Special Mode None Game No. 7 Rogue 7 Adventurer 0 Explorer 0 Win Type - Total 0 Types 0/0/0/0/0/0/0/0/0/0 Lore% 6 Gallery% 10 Achievement% 12 Wizard Run 0 Options --------- Layout 1 ASCII 0 Keyboard 0 Movement Mouse Keybinds 0 Fullscreen 1 Font 24/Smallcaps Map View 50x35 Zoom Use 0% Tactical HUD 0 Map Filters NONE Filters NONE Steam 1 RUN: 8816753b-579d-42ac-9468-92888b35091b